fUST/lending_fUST_20250411
["ID","MTS","AMOUNT","RATE_DAILY","PERIOD"]
[357709378,1744368638082,-500.0,0.00023473,2]
[357709379,1744368638091,-500.0,0.00023473,2]
[357709380,1744368638100,-500.0,0.00023473,2]
[357709381,1744368638110,-500.0,0.00023473,2]
[357709382,1744368638119,-500.0,0.00023473,2]
[357709383,1744368638128,-500.0,0.00023473,2]
[357709384,1744368638138,-552.48346859,0.00023473,2]
[357709385,1744368638147,-500.0,0.00023473,2]
[357709386,1744368638157,-500.0,0.00023473,2]
[357709387,1744368638166,-164.955,0.00023571,4]
[357709388,1744368638175,-1000.0,0.00023572,2]
[357709389,1744368638184,-1000.0,0.00023572,2]
[357709390,1744368638193,-1000.0,0.00023572,2]
[357709391,1744368638202,-1000.0,0.00023572,2]
[357709392,1744368638212,-711.46088986,0.00023572,2]
[357709393,1744368638222,-154.17233174,0.00023572,2]
[357709394,1744368638231,-500.0,0.00023573,2]
[357709395,1744368638240,-500.0,0.00023573,2]
[357709396,1744368638250,-500.0,0.00023573,2]
[357709397,1744368638264,-500.0,0.00023573,2]
[357709398,1744368638273,-274.1491498,0.0002373,2]
[357709399,1744368638283,-151.0,0.000239,7]
[357709400,1744368638292,-151.0,0.000239,7]
[357709401,1744368638302,-2075.96889127,0.000239,5]
[357709402,1744368638311,-7167.0,0.00024,2]
[357709403,1744368638321,-770.984254,0.00024,7]
[357709404,1744368638331,-770.984254,0.00024,7]
[357709405,1744368638341,-151.0,0.00024,7]
[357709406,1744368638350,-151.0,0.00024,7]
[357709407,1744368638359,-151.0,0.00024,7]
[357709408,1744368638369,-151.0,0.00024,2]
[357709409,1744368638378,-151.0,0.00024,2]
[357709410,1744368638388,-633.184708,0.00024,7]
[357709411,1744368638397,-633.184708,0.00024,7]
[357709412,1744368638407,-151.0,0.00024,7]
[357709413,1744368638416,-274.1491498,0.00024087,2]
[357709414,1744368638426,-274.1491498,0.00024443,2]
[357709415,1744368638436,-2411.36,0.0002465,2]
[357709416,1744368638445,-151.0,0.0002465,2]
[357709417,1744368638457,-25347.35735189,0.00024651,2]
[357709418,1744368638478,-4035.43479214,0.00024651,2]
[357709419,1744368638510,-151.0,0.00024651,7]
[357709420,1744368638525,-151.0,0.00024651,2]
[357709421,1744368638542,-151.0,0.00024651,2]
[357709422,1744368638559,-151.0,0.00024651,7]
[357709423,1744368638575,-151.0,0.00024651,7]
[357709424,1744368638594,-151.0,0.00024651,7]
[357709425,1744368638611,-151.0,0.00024651,7]
[357709426,1744368638626,-770.984254,0.00024651,7]
[357709427,1744368638645,-770.984254,0.00024651,7]
[357709428,1744368638663,-770.984254,0.00024651,7]
[357709429,1744368638678,-770.984254,0.00024651,7]
[357709430,1744368638692,-151.0,0.00024651,7]
[357709431,1744368638705,-151.0,0.00024651,7]
[357709432,1744368638718,-151.0,0.00024651,7]
[357709433,1744368638734,-151.0,0.00024651,7]
[357709434,1744368638749,-151.0,0.00024651,7]
[357709435,1744368638766,-151.0,0.00024651,7]
[357709436,1744368638782,-151.0,0.00024651,2]
[357709437,1744368638797,-151.0,0.00024651,2]
[357709438,1744368638809,-151.0,0.00024651,2]
[357709439,1744368638821,-151.0,0.00024651,2]
[357709440,1744368638837,-17680.31248162,0.00024651,2]
[357709441,1744368638865,-3940.31748732,0.00024651,2]
[357709442,1744368638881,-633.184708,0.00024651,7]
[357709443,1744368638894,-633.184708,0.00024651,7]
[357709444,1744368638906,-633.184708,0.00024651,7]
[357709445,1744368638925,-633.184708,0.00024651,7]
[357709446,1744368638941,-151.0,0.00024651,7]
[357709447,1744368638956,-174.231981,0.00024651,7]
[357709448,1744368638970,-160.0,0.00024658,7]
[357709449,1744368638984,-200.0,0.00024658,2]
[357709450,1744368638998,-151.0,0.00024658,7]
[357709451,1744368639013,-151.0,0.00024658,7]
[357709452,1744368639026,-151.0,0.00024658,7]
[357709453,1744368639040,-151.0,0.00024658,7]
[357709454,1744368639054,-155.729039,0.00024658,7]
[357709455,1744368639067,-380.0,0.00024658,2]
[357709456,1744368639081,-443.81880686,0.00024658,2]
[357709457,1744368639095,-500.0,0.00024673,2]
[357709458,1744368639108,-500.65513202,0.00024673,2]
[357709459,1744368639121,-500.0,0.00024673,2]
[357709460,1744368639134,-500.0,0.00024673,2]
[357709461,1744368639146,-151.39355135,0.00024673,2]
[357709462,1744368639159,-500.0,0.00024673,2]
[357709463,1744368639172,-500.0,0.00024673,2]
[357709464,1744368639184,-552.24650485,0.00024673,2]
[357709466,1744368639197,-500.0,0.00024673,2]
[357709467,1744368639216,-500.0,0.00024673,2]
[357709468,1744368639228,-500.0,0.00024673,2]
[357709469,1744368639240,-500.0,0.00024673,2]
[357709470,1744368639256,-500.0,0.00024673,2]
[357709471,1744368639273,-501.92383288,0.00024673,2]
[357709472,1744368639286,-500.0,0.00024673,2]
[357709473,1744368639299,-500.0,0.00024673,2]
[357709474,1744368639312,-500.0,0.00024673,2]
[357709475,1744368639324,-234.09072034,0.00024673,2]
[357709476,1744368639337,-628.00368141,0.00024673,2]
[357709477,1744368639350,-500.0,0.00024673,2]
[357709479,1744368639362,-500.0,0.00024673,2]
[357709481,1744368639375,-500.0,0.00024673,2]
[357709482,1744368639387,-249.80879344,0.00024673,2]
[357709483,1744368639400,-502.8483784,0.00024673,2]
[357709484,1744368639412,-500.0,0.00024673,2]
[357709485,1744368639424,-507.55275187,0.00024673,2]
[357709486,1744368639436,-500.0,0.00024673,2]
[357709487,1744368639448,-500.0,0.00024673,2]
[357709488,1744368639460,-265.06544144,0.00024673,2]
[357709538,1744369049374,6604.41019975,0.00044194,120]
[357709539,1744369064034,35.97106974,0.00025001,120]
[357709540,1744369334517,-500.0,0.00019178,7]
[357709541,1744369334549,-500.0,0.00019178,14]
[357709543,1744369374311,-151.0,0.00024673,7]
[357709544,1744369374340,-151.0,0.00024673,7]
[357709545,1744369374367,-151.0,0.000247,10]
[357709546,1744369374399,-151.0,0.000248,10]
[357709547,1744369410676,-250.0,0.000249,30]
[357709548,1744369410705,-982.94893026,0.00025001,120]
[357709553,1744369755431,500.0,0.00044196,120]
[357709577,1744369831905,-412.0,0.00022,2]
[357709579,1744369831915,-194.84252089,0.00022192,2]
[357709582,1744369831926,-217.15747911,0.00022192,2]
[357709583,1744369831936,-162.074011,0.00022242,2]
[357709586,1744369831946,-412.0,0.00022466,2]
[357709587,1744369831955,-500.0,0.00022546,2]
[357709590,1744369831965,-501.29086008,0.00022546,2]
[357709591,1744369831975,-500.0,0.00022546,2]
[357709593,1744369831984,-500.0,0.00022546,2]
[357709595,1744369831994,-300.0,0.00022549,2]
[357709597,1744369832003,-1000.0,0.0002255,2]
[357709599,1744369832013,-412.0,0.0002274,2]
[357709601,1744369832023,-160.0,0.00022799,2]
[357709603,1744369832033,-419.71244257,0.00022804,2]
[357709605,1744369832043,-160.0,0.00022804,2]
[357709607,1744369832052,-160.0,0.00022804,2]
[357709609,1744369832061,-412.0,0.00023014,2]
[357709611,1744369832071,-412.0,0.00023014,2]
[357709615,1744369832091,-274.1491498,0.00023273,2]
[357709617,1744369832103,-151.0,0.00023358,2]
[357709619,1744369832113,-3798.91,0.00023362,3]
[357709621,1744369832122,-1899.45,0.00023362,3]
[357709623,1744369832132,-949.73,0.00023362,3]
[357709625,1744369832143,-474.86,0.00023362,3]
[357709627,1744369832152,-237.43,0.00023362,3]
[357709629,1744369832163,-712.34,0.00023362,3]
[357709631,1744369832173,-210.81264521,0.00023371,2]
[357709633,1744369832183,-5694.42001506,0.00023372,2]
[357709639,1744369832228,781.60884617,0.00044196,30]
[357709711,1744369840234,-515.0,0.00022,2]
[357709712,1744369840246,-515.0,0.00022192,2]
[357709713,1744369840256,-19444.81052401,0.00023372,2]
[357709768,1744371032120,-172.89239912,0.0002064,6]
[357709769,1744371032131,-148.24050038,0.00021272,2]
[357709804,1744371043195,-288.50790023,0.00021272,2]
[357709805,1744371043207,-4787.6326264,0.00021272,2]
[357709806,1744371043217,-500.0,0.00022,2]
[357709807,1744371043227,-386.0,0.00022,2]
[357709808,1744371043237,-386.0,0.00022192,2]
[357709809,1744371043247,-158.774743,0.00022645,2]
[357709810,1744371043257,-1000.0,0.00022831,2]
[357709811,1744371043266,-2006.76992816,0.000229,4]
[357709812,1744371043276,-250.0,0.00022914,2]
[357709813,1744371043285,-160.0,0.00022932,2]
[357709814,1744371043295,-160.0,0.00022932,2]
[357709815,1744371043305,-300.0,0.00022998,2]
[357709819,1744371043315,-1355.19342155,0.00023,2]
[357709821,1744371043324,-386.0,0.00023014,2]
[357709822,1744371043334,-419.71244257,0.00023079,2]
[357709823,1744371043344,-708.8055002,0.00023932,2]
[357709824,1744371043353,-392.0,0.00024164,2]
[357709825,1744371043362,-3339.3455739,0.00024598,2]
[357709827,1744371043372,-280.0,0.00024658,2]
[357709829,1744371043382,-176.08316982,0.00024672,2]
[357709842,1744371046427,-7.47903825,0.00024672,2]
[357709843,1744371046438,-362.19133297,0.00024673,2]
[357709844,1744371046449,-434.80079608,0.00024673,2]
[357709845,1744371046460,-500.0,0.00024673,2]
[357709846,1744371046471,-500.0,0.00024673,2]
[357709847,1744371046481,-500.0,0.00024673,2]
[357709848,1744371046492,-500.0,0.00024673,2]
[357709849,1744371046502,-500.0,0.00024673,2]
[357709850,1744371046512,-500.0,0.00024673,2]
[357709851,1744371046522,-500.0,0.00024673,2]
[357709852,1744371046532,-500.0,0.00024673,2]
[357709853,1744371046542,-500.0,0.00024673,2]
[357709854,1744371046552,-500.0,0.00024673,2]
[357709855,1744371046563,-500.0,0.00024673,2]
[357709856,1744371046573,-500.0,0.00024673,2]
[357709857,1744371046583,-500.0,0.00024673,2]
[357709858,1744371046593,-224.775747,0.00024673,2]
[357709859,1744371046603,-132.93331143,0.00024673,2]
[357709860,1744371046616,-367.06668857,0.00024673,2]
[357709861,1744371046625,-500.0,0.00024673,2]
[357709862,1744371046635,-54.96056632,0.00024673,2]
[357709863,1744371054802,3731.6140827,0.00044195,30]
[357709865,1744371149349,2402.96085147,0.00044195,120]
[357709866,1744371255502,500.0,0.00044195,120]
[357709867,1744371305690,500.0,0.00044195,120]
[357709869,1744371623413,500.0,0.00044194,120]
[357709870,1744371874533,1000.0,0.00044194,120]
[357709871,1744371875339,1000.0,0.00044194,120]
[357709872,1744371875699,1000.0,0.00044194,120]
[357709873,1744371876046,1000.0,0.00044194,120]
[357709874,1744371876438,1000.0,0.00044194,120]
[357709875,1744371876735,1000.0,0.00044194,120]
[357709876,1744371877132,1000.0,0.00044194,120]
[357709877,1744371877476,1000.0,0.00044194,120]
[357709878,1744371877820,1000.0,0.00044194,120]
[357709879,1744371878391,1000.0,0.00044194,120]
[357709881,1744371901923,697.0,0.00044194,120]
[357709949,1744372238465,-250.0,0.00020748,2]
[357709950,1744372238475,-300.0,0.00021299,2]
[357709951,1744372238486,-500.0,0.000213,2]
[357709952,1744372238496,-500.0,0.000213,2]
[357709953,1744372238506,-349.52809051,0.000213,2]
[357709955,1744372240606,-150.47190949,0.000213,2]
[357709956,1744372240616,-452.76019971,0.000213,2]
[357709967,1744372243434,-47.23980029,0.000213,2]
[357709968,1744372243444,-500.0,0.000213,2]
[357709969,1744372243454,-500.0,0.000213,2]
[357709970,1744372243463,-500.0,0.000213,2]
[357709971,1744372243473,-500.0,0.000213,2]
[357709972,1744372243483,-3216.78151912,0.000213,2]
[357709973,1744372243492,-500.0,0.000213,2]
[357709974,1744372243502,-500.0,0.000213,2]
[357709975,1744372243511,-500.0,0.000213,2]
[357709976,1744372243521,-500.0,0.000213,2]
[357709977,1744372243530,-500.0,0.000213,2]
[357709978,1744372243540,-500.0,0.000213,2]
[357709980,1744372243550,-500.0,0.000213,2]
[357709983,1744372243562,-500.0,0.000213,2]
[357709986,1744372243573,-500.0,0.000213,2]
[357709989,1744372243582,-500.0,0.000213,2]
[357709990,1744372243591,-500.0,0.000213,2]
[357709991,1744372243601,-500.0,0.000213,2]
[357709992,1744372243611,-154.0,0.00022,2]
[357709993,1744372243620,-158.7747445,0.00022598,2]
[357709994,1744372243630,-160.0,0.00022847,2]
[357709995,1744372243640,-419.71244257,0.00022851,2]
[357709996,1744372243649,-1939.87759726,0.000229,4]
[357709997,1744372243659,-420.0,0.00023162,2]
[357709998,1744372243669,-531.6041252,0.00023932,2]
[357709999,1744372243679,-2921.92737718,0.00024498,2]
[357710000,1744372243689,-184.7643338,0.00024588,2]
[357710001,1744372243699,-4344.37,0.00024589,3]
[357710002,1744372243709,-2461.81,0.00024589,3]
[357710004,1744372243718,-1230.91,0.00024589,3]
[357710006,1744372243727,-615.45,0.00024589,3]
[357710008,1744372243737,-307.73,0.00024589,3]
[357710010,1744372243746,-256.44,0.00024589,3]
[357710012,1744372243756,-769.35,0.00024589,3]
[357710014,1744372243766,-419.71244257,0.00024598,3]
[357710015,1744372243776,-6630.90329913,0.00024599,2]
[357710054,1744372838777,2258.5248126,0.00044198,30]
[357710055,1744373029613,499.99999999,0.00044198,120]
[357710056,1744373039507,500.0,0.00044198,120]
[357710057,1744373057104,500.0,0.00044198,120]
[357710058,1744373077732,1034.22414046,0.00044198,120]
[357710059,1744373092882,500.0,0.00044198,120]
[357710060,1744373108569,500.0,0.00044198,120]
[357710065,1744373412484,500.0,0.00044198,120]
[357710073,1744373432538,-300.0,0.00021289,2]
[357710076,1744373432548,-259.07194457,0.00021289,2]
[357710131,1744373438825,-240.92805543,0.00021289,2]
[357710133,1744373438835,-500.0,0.00021289,2]
[357710135,1744373438845,-500.0,0.00021289,2]
[357710137,1744373438854,-449.6883446,0.00021289,2]
[357710139,1744373438864,-500.0,0.00021289,2]
[357710141,1744373438873,-500.0,0.00021289,2]
[357710143,1744373438882,-500.0,0.00021289,2]
[357710145,1744373438891,-258.62527048,0.00021289,2]
[357710147,1744373438902,-500.0,0.00021289,2]
[357710149,1744373438911,-158.774743,0.0002164,2]
[357710152,1744373438921,-500.0,0.000219,2]
[357710154,1744373438930,-500.0,0.000219,2]
[357710156,1744373438940,-500.0,0.000219,2]
[357710158,1744373438949,-500.0,0.000221,2]
[357710166,1744373439137,-500.0,0.000221,2]
[357710167,1744373439171,-500.0,0.00022417,2]
[357710168,1744373439181,-500.0,0.0002242,2]
[357710169,1744373439190,-500.0,0.0002242,2]
[357710170,1744373439200,-500.0,0.0002242,2]
[357710171,1744373439209,-500.0,0.0002242,2]
[357710172,1744373439219,-500.0,0.0002242,2]
[357710173,1744373439228,-500.0,0.0002242,2]
[357710174,1744373439238,-248.01467819,0.000227,2]
[357710175,1744373439248,-500.0,0.000227,2]
[357710176,1744373439258,-500.0,0.000227,2]
[357710177,1744373439267,-500.0,0.000227,2]
[357710178,1744373439277,-1000.0,0.0002274,2]
[357710179,1744373439287,-10072.3281514,0.0002286,2]
[357710180,1744373439298,-160.0,0.0002286,2]
[357710181,1744373439307,-837.98236364,0.00022862,2]
[357710182,1744373439317,-2974.10465177,0.00022876,2]
[357710183,1744373439326,-2173.52489074,0.000229,4]
[357710184,1744373439336,-151.0,0.00022963,2]
[357710185,1744373439346,-500.0,0.00022973,2]
[357710186,1744373439356,-500.0,0.00022973,2]
[357710187,1744373439365,-500.0,0.00022973,2]
[357710188,1744373439375,-500.0,0.00022973,2]
[357710189,1744373439385,-379.39188857,0.00022975,2]
[357710190,1744373439395,-151.0,0.00022976,7]
[357710191,1744373439409,-151.0,0.00022976,7]
[357710192,1744373439419,-151.0,0.00022976,7]
[357710193,1744373439428,-443.229295,0.00022976,7]
[357710194,1744373439438,-443.229295,0.00022976,7]
[357710195,1744373439447,-443.229295,0.00022976,7]
[357710196,1744373439457,-443.229295,0.00022976,7]
[357710197,1744373439467,-443.229295,0.00022976,7]
[357710198,1744373439476,-443.229295,0.00022976,7]
[357710199,1744373439486,-151.0,0.00022976,7]
[357710200,1744373439495,-151.0,0.00022976,7]
[357710201,1744373439505,-211.940729,0.00022976,7]
[357710202,1744373439515,-158.317803,0.00022976,7]
[357710203,1744373439525,-20262.01861119,0.00022976,2]
[357710224,1744373441028,-443.42160967,0.00022976,2]
[357710235,1744373444006,-9886.76033465,0.00022976,2]
[357710236,1744373444016,-5447.84146256,0.00022976,3]
[357710237,1744373444025,-11777.58650618,0.00022976,2]
[357710323,1744373700736,500.0,0.00044194,120]
[357710324,1744373716799,500.0,0.00044194,120]
[357710325,1744373729354,200.0,0.00044194,120]
[357710326,1744373730733,200.0,0.00044194,120]
[357710327,1744373778957,500.0,0.00044194,120]
[357710328,1744373816414,500.0,0.00044194,120]
[357710329,1744373823926,500.0,0.00044194,120]
[357710330,1744373831139,500.0,0.00044194,60]
[357710331,1744373839052,500.0,0.00044194,120]
[357710332,1744373848091,500.0,0.00044194,120]
[357710365,1744373885067,1017.468,0.00044244,120]
[357710579,1744374645593,-250.0,0.00020776,2]
[357710580,1744374645607,-417.62503005,0.000216,2]
[357710582,1744374645620,-3341.14399339,0.00021601,2]
[357710583,1744374645634,-300.0,0.00021695,2]
[357710584,1744374645648,-25005.4174109,0.00021696,2]
[357710586,1744374645659,-288.1788827,0.00021701,2]
[357710593,1744374645668,-614.58832538,0.00021815,2]
[357710594,1744374645963,-1000.0,0.0002274,2]
[357710595,1744374645977,-379.16615593,0.0002288,2]
[357710596,1744374645987,-294.988398,0.000229,7]
[357710597,1744374645998,-2101.07406101,0.000229,4]
[357710598,1744374646008,-265.574322,0.00022962,2]
[357710599,1744374646018,-169.67,0.00022963,2]
[357710600,1744374646028,-151.0,0.00022966,2]
[357710601,1744374646041,-2929.78,0.00022969,3]
[357710602,1744374646051,-4172.83,0.00022969,3]
[357710603,1744374646061,-2086.42,0.00022969,3]
[357710605,1744374646072,-1043.21,0.00022969,3]
[357710606,1744374646083,-521.6,0.00022969,3]
[357710607,1744374646093,-260.8,0.00022969,3]
[357710608,1744374646106,-782.44,0.00022969,3]
[357710609,1744374646117,-500.0,0.00022973,2]
[357710610,1744374646128,-500.0,0.00022973,2]
[357710611,1744374646139,-500.0,0.00022973,2]
[357710612,1744374646148,-500.0,0.00022973,2]
[357710613,1744374646159,-500.0,0.00022973,2]
[357710614,1744374646169,-500.0,0.00022973,2]
[357710615,1744374646180,-500.0,0.00022973,2]
[357710616,1744374646191,-500.0,0.00022973,2]
[357710617,1744374646201,-500.0,0.00022973,2]
[357710618,1744374646212,-500.0,0.00022973,2]
[357710619,1744374646222,-521.91815408,0.00022973,2]
[357710620,1744374646232,-500.0,0.00022973,2]
[357710621,1744374646242,-500.0,0.00022973,2]
[357710622,1744374646252,-500.0,0.00022973,2]
[357710623,1744374646262,-500.0,0.00022973,2]
[357710624,1744374646272,-500.13310152,0.00022973,2]
[357710625,1744374646284,-153.708409,0.00022973,7]
[357710626,1744374646296,-151.0,0.00022973,7]
[357710627,1744374646307,-151.0,0.00022973,7]
[357710628,1744374646317,-207.113204,0.00022973,7]
[357710629,1744374646327,-207.113204,0.00022973,7]
[357710630,1744374646337,-151.45994,0.00022976,7]
[357710631,1744374646347,-151.0,0.00022976,7]
[357710632,1744374646357,-603.459947,0.00022976,7]
[357710633,1744374646367,-603.459947,0.00022976,7]
[357710634,1744374646377,-151.0,0.00022976,7]
[357710635,1744374646387,-151.254667,0.00022976,7]
[357710636,1744374646398,-151.0,0.00022976,7]
[357710637,1744374646408,-159.381325,0.00022976,7]
[357710638,1744374646418,-161.793978,0.00022976,7]
[357710639,1744374646428,-151.0,0.00022976,7]
[357710640,1744374646438,-151.0,0.00022976,7]
[357710641,1744374646448,-151.0,0.00022976,7]
[357710642,1744374646460,-153.680127,0.00022976,7]
[357710643,1744374646478,-151.0,0.00022976,7]
[357710644,1744374646492,-151.0,0.00022976,7]
[357710645,1744374646503,-151.0,0.00022976,7]
[357710646,1744374646514,-404.868369,0.00022976,7]
[357710647,1744374646524,-404.868369,0.00022976,7]
[357710648,1744374646536,-151.0,0.00022976,7]
[357710649,1744374646547,-151.0,0.00022976,7]
[357710650,1744374646560,-151.0,0.00022976,7]
[357710651,1744374646571,-214.033084,0.00022976,7]
[357710652,1744374646583,-154.773122,0.00022976,2]
[357710653,1744374646594,-154.773122,0.00022976,2]
[357710654,1744374646604,-151.000001,0.00022976,7]
[357710655,1744374646615,-151.0,0.00022976,7]
[357710656,1744374646626,-151.0,0.00022976,7]
[357710657,1744374646636,-151.0,0.00022976,7]
[357710658,1744374646646,-151.0,0.00022976,7]
[357710659,1744374646657,-151.0,0.00022976,7]
[357710660,1744374646667,-151.0,0.00022976,7]
[357710661,1744374646677,-388.390564,0.00022976,7]
[357710662,1744374646688,-388.390564,0.00022976,7]
[357710663,1744374646698,-160.312768,0.00022976,7]
[357710664,1744374646707,-468.055421,0.00022976,7]
[357710665,1744374646717,-468.055421,0.00022976,7]
[357710666,1744374646726,-151.0,0.00022976,7]
[357710667,1744374646736,-154.985626,0.00022976,7]
[357710668,1744374646746,-151.0,0.00022976,7]
[357710669,1744374646755,-151.0,0.00022976,7]
[357710670,1744374646765,-151.0,0.00022976,7]
[357710671,1744374646774,-151.0,0.00022976,7]
[357710672,1744374646786,-314.008992,0.00022976,7]
[357710673,1744374646796,-314.008992,0.00022976,7]
[357710674,1744374646806,-1650.992263,0.00022976,2]
[357710675,1744374646816,-1650.992263,0.00022976,2]
[357710676,1744374646825,-1650.992263,0.00022976,2]
[357710677,1744374646835,-1650.992263,0.00022976,2]
[357710678,1744374646845,-158.173726,0.00022976,7]
[357710679,1744374646855,-158.173726,0.00022976,7]
[357710680,1744374646864,-158.173726,0.00022976,7]
[357710681,1744374646875,-158.173726,0.00022976,7]
[357710682,1744374646885,-151.0,0.00022976,7]
[357710683,1744374646895,-151.0,0.00022976,7]
[357710684,1744374646905,-151.0,0.00022976,7]
[357710685,1744374646916,-177.990843,0.00022976,7]
[357710686,1744374646926,-404.947641,0.00022976,7]
[357710687,1744374646936,-404.947641,0.00022976,7]
[357710688,1744374646946,-212.970148,0.00022976,7]
[357710689,1744374646955,-155.30733,0.00022976,7]
[357710690,1744374646965,-207.113204,0.00022976,7]
[357710691,1744374646975,-207.113204,0.00022976,7]
[357710692,1744374646985,-1651.208428,0.00022976,7]
[357710693,1744374646996,-207.113204,0.00022976,7]
[357710694,1744374647006,-207.113204,0.00022976,7]
[357710695,1744374647016,-1651.208428,0.00022976,7]
[357710696,1744374647026,-1651.208428,0.00022976,7]
[357710697,1744374647039,-157.976932,0.00022976,7]
[357710698,1744374647049,-1651.208428,0.00022976,7]
[357710699,1744374647059,-1651.208428,0.00022976,7]
[357710700,1744374647070,-1651.208428,0.00022976,7]
[357710701,1744374647081,-179.652632,0.00022976,7]
[357710702,1744374647091,-179.652632,0.00022976,7]
[357710703,1744374647102,-179.652632,0.00022976,7]
[357710704,1744374647115,-151.0,0.00022976,7]
[357710705,1744374647125,-151.0,0.00022976,7]
[357710706,1744374647135,-151.0,0.00022976,7]
[357710707,1744374647145,-179.652632,0.00022976,7]
[357710708,1744374647155,-179.652632,0.00022976,7]
[357710709,1744374647165,-179.652632,0.00022976,7]
[357710710,1744374647175,-151.0,0.00022979,7]
[357710711,1744374647185,-151.0,0.00022979,7]
[357710712,1744374647195,-151.0,0.00022979,7]
[357710713,1744374647205,-151.0,0.00022979,7]
[357710714,1744374647215,-151.0,0.00022979,7]
[357710715,1744374647224,-151.0,0.00022979,7]
[357710716,1744374647234,-151.0,0.00022979,7]
[357710717,1744374647244,-151.0,0.00022979,7]
[357710718,1744374647254,-314.008992,0.00022979,7]
[357710719,1744374647263,-314.008992,0.00022979,7]
[357710720,1744374647274,-314.008992,0.00022979,7]
[357710721,1744374647285,-314.008992,0.00022979,7]
[357710722,1744374647295,-1650.992263,0.00022979,2]
[357710723,1744374647305,-1650.992263,0.00022979,2]
[357710724,1744374647315,-1650.992263,0.00022979,2]
[357710725,1744374647325,-1650.992263,0.00022979,2]
[357710726,1744374647335,-158.173726,0.00022979,7]
[357710727,1744374647346,-158.173726,0.00022979,7]
[357710728,1744374647356,-158.173726,0.00022979,7]
[357710729,1744374647366,-158.173726,0.00022979,7]
[357710730,1744374647376,-151.0,0.00022979,7]
[357710731,1744374647386,-151.0,0.00022979,7]
[357710732,1744374647397,-404.947641,0.00022979,7]
[357710733,1744374647407,-404.947641,0.00022979,7]
[357710734,1744374647417,-207.113204,0.00022979,7]
[357710735,1744374647427,-207.113204,0.00022979,7]
[357710736,1744374647437,-207.113204,0.00022979,7]
[357710737,1744374647447,-207.113204,0.00022979,7]
[357710738,1744374647457,-1651.208428,0.00022979,7]
[357710739,1744374647468,-1651.208428,0.00022979,7]
[357710741,1744374647478,-1651.208428,0.00022979,7]
[357710742,1744374647488,-1651.208428,0.00022979,7]
[357710743,1744374647499,-1651.208428,0.00022979,7]
[357710744,1744374647509,-1651.208428,0.00022979,7]
[357710745,1744374647519,-179.652632,0.00022979,7]
[357710746,1744374647529,-179.652632,0.00022979,7]
[357710747,1744374647541,-179.652632,0.00022979,7]
[357710748,1744374647551,-265.46073,0.00022979,7]
[357710749,1744374647561,-179.652632,0.00022979,7]
[357710750,1744374647571,-179.652632,0.00022979,7]
[357710751,1744374647582,-179.652632,0.00022979,7]
[357710752,1744374647591,-27793.85903063,0.00022979,2]
[357710753,1744374647603,-6493.74375896,0.00022979,3]
[357710754,1744374647612,-370000.0,0.00022979,2]
[357710755,1744374647622,-151.0,0.00023,2]
[357710756,1744374647632,-419.71244257,0.00023,3]
[357710757,1744374647642,-160.0,0.00023,3]
[357710758,1744374647651,-2222.0,0.00023002,2]